[Event "Late-Titled-Tuesday-Blitz-March-12-2024"]
[Site "Chess.com"]
[Date "2024.03.12"]
[Round "3"]
[White "Grindaveci"]
[Black "Rutricks"]
[Result "0-1"]
[WhiteElo "2527"]
[BlackElo "2720"]
[TimeControl "180+1"]
[EndTime "14:26:15 PDT"]
[Termination "Rutricks won by resignation"]

1. e4 {[%clk 0:03:00.7]} 1... g6 {[%clk 0:02:52.3]} 2. d4 {[%clk 0:02:57.8]}
2... Bg7 {[%clk 0:02:53.2]} 3. Nf3 {[%clk 0:02:57]} 3... c6 {[%clk 0:02:53.7]}
4. Be2 {[%clk 0:02:55.8]} 4... d5 {[%clk 0:02:54.1]} 5. e5 {[%clk 0:02:55.6]}
5... f6 {[%clk 0:02:54.4]} 6. O-O {[%clk 0:02:54.8]} 6... fxe5 {[%clk
0:02:54.3]} 7. Nxe5 {[%clk 0:02:55.4]} 7... Nd7 {[%clk 0:02:54.8]} 8. f4 {[%clk
0:02:52.6]} 8... Ngf6 {[%clk 0:02:54.3]} 9. f5 {[%clk 0:02:50.5]} 9... Nxe5
{[%clk 0:02:48.5]} 10. dxe5 {[%clk 0:02:50.1]} 10... Qb6+ {[%clk 0:02:49.2]} 11.
Kh1 {[%clk 0:02:37.7]} 11... Ne4 {[%clk 0:02:49.7]} 12. f6 {[%clk 0:02:23.2]}
12... exf6 {[%clk 0:02:47.4]} 13. exf6 {[%clk 0:02:22.3]} 13... Bxf6 {[%clk
0:02:47.7]} 14. Qe1 {[%clk 0:02:19.1]} 14... O-O {[%clk 0:02:47.6]} 15. Nd2
{[%clk 0:02:04]} 15... Bf5 {[%clk 0:02:37.7]} 16. Nf3 {[%clk 0:01:50.7]} 16...
Rae8 {[%clk 0:02:29]} 17. c3 {[%clk 0:01:33]} 17... Bg7 {[%clk 0:01:41.5]} 18.
Nd2 {[%clk 0:00:51.2]} 18... Bg4 {[%clk 0:00:36.7]} 19. Rxf8+ {[%clk 0:00:45.9]}
19... Bxf8 {[%clk 0:00:36.7]} 20. Nf3 {[%clk 0:00:14.8]} 20... Nf2+ {[%clk
0:00:29.5]} 21. Kg1 {[%clk 0:00:15.1]} 21... Nd3+ {[%clk 0:00:25.8]} 0-1

[Event "Late-Titled-Tuesday-Blitz-March-12-2024"]
[Site "Chess.com"]
[Date "2024.03.12"]
[Round "3"]
[White "HaryKane"]
[Black "egnfanclub"]
[Result "1-0"]
[WhiteElo "2606"]
[BlackElo "2379"]
[TimeControl "180+1"]
[EndTime "14:26:19 PDT"]
[Termination "HaryKane won by resignation"]

1. d4 {[%clk 0:03:00.9]} 1... d5 {[%clk 0:02:59.4]} 2. e3 {[%clk 0:03:00.1]}
2... Nf6 {[%clk 0:02:58.9]} 3. f4 {[%clk 0:02:59.6]} 3... c5 {[%clk 0:02:54.9]}
4. Nf3 {[%clk 0:02:58.7]} 4... Nc6 {[%clk 0:02:55.1]} 5. c3 {[%clk 0:02:58.7]}
5... e6 {[%clk 0:02:53.3]} 6. Bd3 {[%clk 0:02:57.9]} 6... Qc7 {[%clk 0:02:50.5]}
7. O-O {[%clk 0:02:57.7]} 7... b6 {[%clk 0:02:39.1]} 8. Ne5 {[%clk 0:02:48]}
8... Bb7 {[%clk 0:02:39.2]} 9. Nd2 {[%clk 0:02:46.3]} 9... Nxe5 {[%clk
0:02:26.1]} 10. fxe5 {[%clk 0:02:40.1]} 10... Ne4 {[%clk 0:02:26.5]} 11. Nxe4
{[%clk 0:02:36.7]} 11... dxe4 {[%clk 0:02:27.4]} 12. Bb5+ {[%clk 0:02:34.6]}
12... Bc6 {[%clk 0:02:26.2]} 13. Qa4 {[%clk 0:02:34.5]} 13... Bxb5 {[%clk
0:01:41.1]} 14. Qxb5+ {[%clk 0:02:33.8]} 14... Kd8 {[%clk 0:01:41.4]} 15. Bd2
{[%clk 0:02:29.4]} 15... a6 {[%clk 0:01:40.4]} 16. Qe2 {[%clk 0:02:25.3]} 16...
Ra7 {[%clk 0:01:18.8]} 17. Qg4 {[%clk 0:02:22.2]} 17... Qc6 {[%clk 0:01:07.1]}
18. Rf4 {[%clk 0:02:21.2]} 18... h5 {[%clk 0:01:05.7]} 19. Qh4+ {[%clk
0:02:09.8]} 19... Be7 {[%clk 0:01:03]} 20. Qg3 {[%clk 0:02:09.4]} 20... g6
{[%clk 0:00:35.5]} 21. Rxf7 {[%clk 0:02:06.1]} 21... Rg8 {[%clk 0:00:11.9]} 22.
Raf1 {[%clk 0:02:02.7]} 22... Qd5 {[%clk 0:00:05.7]} 23. b3 {[%clk 0:01:59.8]}
23... a5 {[%clk 0:00:05.2]} 24. Qf4 {[%clk 0:01:30.3]} 24... c4 {[%clk
0:00:04.4]} 25. Qh6 {[%clk 0:01:19.2]} 25... cxb3 {[%clk 0:00:03.4]} 26. axb3
{[%clk 0:01:20.1]} 26... Qxb3 {[%clk 0:00:02.9]} 27. Qh7 {[%clk 0:01:20.2]}
27... Re8 {[%clk 0:00:02.1]} 28. Qxg6 {[%clk 0:01:11.1]} 28... Qc2 {[%clk
0:00:02.4]} 29. Be1 {[%clk 0:01:03.8]} 29... Qd3 {[%clk 0:00:02.8]} 30. Qxe6
{[%clk 0:01:01.3]} 30... Qxe3+ {[%clk 0:00:02.5]} 31. Kh1 {[%clk 0:01:01]} 31...
Qxc3 {[%clk 0:00:03]} 32. Bxc3 {[%clk 0:00:56.4]} 1-0

[Event "Late-Titled-Tuesday-Blitz-March-12-2024"]
[Site "Chess.com"]
[Date "2024.03.12"]
[Round "3"]
[White "publicaccountcze"]
[Black "maurovargas01"]
[Result "0-1"]
[WhiteElo "2183"]
[BlackElo "1839"]
[TimeControl "180+1"]
[EndTime "14:26:22 PDT"]
[Termination "maurovargas01 won by resignation"]

1. e4 {[%clk 0:03:00.2]} 1... c6 {[%clk 0:02:59.1]} 2. d4 {[%clk 0:02:54.2]}
2... d5 {[%clk 0:03:00]} 3. e5 {[%clk 0:02:54.8]} 3... Bf5 {[%clk 0:02:59.9]} 4.
Nf3 {[%clk 0:02:51.2]} 4... e6 {[%clk 0:02:57.6]} 5. Be2 {[%clk 0:02:48.1]} 5...
h6 {[%clk 0:02:56.9]} 6. O-O {[%clk 0:02:45.5]} 6... Nd7 {[%clk 0:02:52.9]} 7.
Nbd2 {[%clk 0:02:44.9]} 7... c5 {[%clk 0:02:52.9]} 8. dxc5 {[%clk 0:02:42.1]}
8... Bxc5 {[%clk 0:02:51.2]} 9. Nb3 {[%clk 0:02:32.3]} 9... Bb6 {[%clk
0:02:50.6]} 10. Nbd4 {[%clk 0:02:20]} 10... Bh7 {[%clk 0:02:42.6]} 11. Nb5
{[%clk 0:02:02.9]} 11... Bc5 {[%clk 0:02:13.5]} 12. Be3 {[%clk 0:02:01.4]} 12...
Be7 {[%clk 0:02:11.4]} 13. c4 {[%clk 0:02:01.8]} 13... a6 {[%clk 0:02:09.4]} 14.
Nd6+ {[%clk 0:01:57.4]} 14... Bxd6 {[%clk 0:02:08.8]} 15. exd6 {[%clk
0:01:58.3]} 15... dxc4 {[%clk 0:02:05.7]} 16. Bxc4 {[%clk 0:01:54]} 16... b5
{[%clk 0:02:05.7]} 17. Bb3 {[%clk 0:01:43.8]} 17... Ngf6 {[%clk 0:02:04.9]} 18.
Nd4 {[%clk 0:01:38.3]} 18... O-O {[%clk 0:02:01.5]} 19. Nc6 {[%clk 0:01:37.4]}
19... Qe8 {[%clk 0:01:53.3]} 20. Rc1 {[%clk 0:01:32.9]} 20... Nd5 {[%clk
0:01:42.4]} 21. Bxd5 {[%clk 0:01:11]} 21... exd5 {[%clk 0:01:40.5]} 22. Ne7+
{[%clk 0:01:11.1]} 22... Kh8 {[%clk 0:01:39.7]} 23. Qxd5 {[%clk 0:01:12]} 23...
Nf6 {[%clk 0:01:29.7]} 24. Qd4 {[%clk 0:01:12.3]} 24... Rd8 {[%clk 0:01:27.9]}
25. Bxh6 {[%clk 0:01:11.2]} 25... Rd7 {[%clk 0:01:17]} 26. Rc8 {[%clk
0:01:04.9]} 26... Qxe7 {[%clk 0:01:14.8]} 27. dxe7 {[%clk 0:01:01]} 27... Rxc8
{[%clk 0:01:11.3]} 28. Qe5 {[%clk 0:00:37]} 28... Re8 {[%clk 0:01:10.6]} 29. Bg5
{[%clk 0:00:31.3]} 29... Ne4 {[%clk 0:00:59.5]} 30. Bh4 {[%clk 0:00:25.2]} 30...
f6 {[%clk 0:00:55.2]} 31. Qe6 {[%clk 0:00:25.4]} 31... Rdxe7 {[%clk 0:00:52.1]}
32. f3 {[%clk 0:00:19.4]} 32... Rxe6 {[%clk 0:00:50.6]} 0-1

[Event "Late-Titled-Tuesday-Blitz-March-12-2024"]
[Site "Chess.com"]
[Date "2024.03.12"]
[Round "3"]
[White "mac0504"]
[Black "FMYiLiu"]
[Result "1-0"]
[WhiteElo "2705"]
[BlackElo "2520"]
[TimeControl "180+1"]
[EndTime "14:26:26 PDT"]
[Termination "mac0504 won by checkmate"]

1. c4 {[%clk 0:03:00.9]} 1... e6 {[%clk 0:02:58.4]} 2. Nc3 {[%clk 0:03:01.8]}
2... d5 {[%clk 0:02:58.9]} 3. e3 {[%clk 0:03:02.6]} 3... Nf6 {[%clk 0:02:58.7]}
4. b3 {[%clk 0:03:03.3]} 4... Be7 {[%clk 0:02:47.9]} 5. Bb2 {[%clk 0:03:03.8]}
5... O-O {[%clk 0:02:48.4]} 6. g4 {[%clk 0:03:04.5]} 6... d4 {[%clk 0:02:21.3]}
7. exd4 {[%clk 0:02:54.5]} 7... Qxd4 {[%clk 0:02:22.2]} 8. h3 {[%clk 0:02:55.2]}
8... Ne4 {[%clk 0:02:12.7]} 9. Qe2 {[%clk 0:02:53.2]} 9... Bh4 {[%clk
0:02:12.6]} 10. Qxe4 {[%clk 0:02:31.3]} 10... Bxf2+ {[%clk 0:02:11.6]} 11. Kd1
{[%clk 0:02:03.3]} 11... Bxg1 {[%clk 0:02:12.5]} 12. Qg2 {[%clk 0:02:01.2]}
12... Be3 {[%clk 0:01:58.5]} 13. Kc2 {[%clk 0:02:01.2]} 13... Bg5 {[%clk
0:01:39.5]} 14. h4 {[%clk 0:02:01.7]} 14... Bd8 {[%clk 0:01:29.6]} 15. g5 {[%clk
0:01:58.6]} 15... Nc6 {[%clk 0:01:22.7]} 16. Re1 {[%clk 0:01:49.2]} 16... e5
{[%clk 0:01:21]} 17. Nd5 {[%clk 0:01:45.2]} 17... Bf5+ {[%clk 0:01:03.4]} 18.
Kc1 {[%clk 0:01:45.3]} 18... Qc5 {[%clk 0:00:52.1]} 19. h5 {[%clk 0:01:45.8]}
19... Qa5 {[%clk 0:00:28.1]} 20. a3 {[%clk 0:01:15.6]} 20... Nd4 {[%clk
0:00:28.7]} 21. Bxd4 {[%clk 0:01:00.1]} 21... exd4 {[%clk 0:00:29.6]} 22. Kb2
{[%clk 0:00:58.2]} 22... c6 {[%clk 0:00:23.8]} 23. Nf6+ {[%clk 0:00:53.2]} 23...
Kh8 {[%clk 0:00:23.6]} 24. Qf2 {[%clk 0:00:49.9]} 24... gxf6 {[%clk 0:00:22.2]}
25. b4 {[%clk 0:00:45.5]} 25... Qc7 {[%clk 0:00:15.5]} 26. Qxf5 {[%clk
0:00:45.6]} 26... fxg5 {[%clk 0:00:13.6]} 27. Bd3 {[%clk 0:00:45.5]} 27... f6
{[%clk 0:00:14.2]} 28. Re6 {[%clk 0:00:36.8]} 28... Qf4 {[%clk 0:00:11.4]} 29.
Qxh7# {[%clk 0:00:34.3]} 1-0

[Event "Late-Titled-Tuesday-Blitz-March-12-2024"]
[Site "Chess.com"]
[Date "2024.03.12"]
[Round "3"]
[White "remyrushbrooke"]
[Black "ArturoCaceres"]
[Result "0-1"]
[WhiteElo "2257"]
[BlackElo "2447"]
[TimeControl "180+1"]
[EndTime "14:26:26 PDT"]
[Termination "ArturoCaceres won on time"]

1. d4 {[%clk 0:03:00.9]} 1... e5 {[%clk 0:02:55.2]} 2. dxe5 {[%clk 0:03:00]}
2... d6 {[%clk 0:02:55.7]} 3. exd6 {[%clk 0:02:58.5]} 3... Bxd6 {[%clk
0:02:56.6]} 4. Nc3 {[%clk 0:02:58.5]} 4... Nf6 {[%clk 0:02:57.5]} 5. e4 {[%clk
0:02:56.9]} 5... O-O {[%clk 0:02:58.4]} 6. Nf3 {[%clk 0:02:56.6]} 6... Nc6
{[%clk 0:02:56.2]} 7. Bd3 {[%clk 0:02:56.2]} 7... Re8 {[%clk 0:02:56.9]} 8. O-O
{[%clk 0:02:55.1]} 8... Bg4 {[%clk 0:02:57.6]} 9. h3 {[%clk 0:02:54]} 9... Bh5
{[%clk 0:02:57.9]} 10. Bg5 {[%clk 0:02:52.2]} 10... h6 {[%clk 0:02:55]} 11. Bxf6
{[%clk 0:02:30.3]} 11... Qxf6 {[%clk 0:02:54.4]} 12. g4 {[%clk 0:02:30.6]} 12...
Ne5 {[%clk 0:02:45.2]} 13. Nxe5 {[%clk 0:02:27.2]} 13... Qxe5 {[%clk 0:02:38.9]}
14. f4 {[%clk 0:02:23.3]} 14... Qc5+ {[%clk 0:02:38.4]} 15. Kh1 {[%clk
0:02:20.5]} 15... Bg6 {[%clk 0:02:38.9]} 16. e5 {[%clk 0:02:10.7]} 16... Bxd3
{[%clk 0:02:34.2]} 17. Qxd3 {[%clk 0:02:11.6]} 17... Bf8 {[%clk 0:02:33.5]} 18.
Qd5 {[%clk 0:02:11.1]} 18... Qb4 {[%clk 0:02:32.8]} 19. Qb3 {[%clk 0:02:00.2]}
19... Qc5 {[%clk 0:02:28.5]} 20. Qd5 {[%clk 0:02:00.2]} 20... Qb6 {[%clk
0:02:23.6]} 21. Qb5 {[%clk 0:01:47.9]} 21... Qg6 {[%clk 0:02:13.7]} 22. f5
{[%clk 0:01:45.9]} 22... Qg5 {[%clk 0:02:12.7]} 23. Qe2 {[%clk 0:01:30.5]} 23...
Bd6 {[%clk 0:01:53.1]} 24. e6 {[%clk 0:01:03.6]} 24... fxe6 {[%clk 0:01:52.9]}
25. fxe6 {[%clk 0:01:04.5]} 25... Qh4 {[%clk 0:01:48.2]} 26. Rf3 {[%clk
0:00:33.7]} 26... Re7 {[%clk 0:01:35.8]} 27. Nd5 {[%clk 0:00:22.4]} 27... Ree8
{[%clk 0:01:35.5]} 28. Raf1 {[%clk 0:00:19.9]} 28... c6 {[%clk 0:01:35.6]} 29.
Nc3 {[%clk 0:00:16.7]} 29... Re7 {[%clk 0:01:35.9]} 30. Qe4 {[%clk 0:00:16]}
30... Rae8 {[%clk 0:01:34.2]} 31. Qf5 {[%clk 0:00:06.5]} 31... Rxe6 {[%clk
0:01:30]} 32. Qf7+ {[%clk 0:00:06.9]} 32... Kh8 {[%clk 0:01:28.8]} 33. Nd1
{[%clk 0:00:04.1]} 33... Re1 {[%clk 0:01:26.6]} 34. Kg2 {[%clk 0:00:03.6]} 34...
R1e2+ {[%clk 0:01:21.5]} 35. Nf2 {[%clk 0:00:02.6]} 35... Rf8 {[%clk 0:01:20]}
36. Qxf8+ {[%clk 0:00:02.3]} 36... Bxf8 {[%clk 0:01:19.8]} 37. Rxf8+ {[%clk
0:00:03.2]} 37... Kh7 {[%clk 0:01:20.1]} 38. Rf3 {[%clk 0:00:04.1]} 38... Rxc2
{[%clk 0:01:18.9]} 39. Re1 {[%clk 0:00:04.5]} 39... Rxb2 {[%clk 0:01:17.9]} 40.
Rd1 {[%clk 0:00:04.2]} 40... Qe7 {[%clk 0:01:17]} 41. Rfd3 {[%clk 0:00:01.5]}
41... Qe2 {[%clk 0:01:15.7]} 0-1

[Event "Late-Titled-Tuesday-Blitz-March-12-2024"]
[Site "Chess.com"]
[Date "2024.03.12"]
[Round "3"]
[White "jinxy2009"]
[Black "MaiqMaster"]
[Result "1-0"]
[WhiteElo "2215"]
[BlackElo "2412"]
[TimeControl "180+1"]
[EndTime "14:26:28 PDT"]
[Termination "jinxy2009 won by checkmate"]

1. e4 {[%clk 0:03:00.9]} 1... e5 {[%clk 0:02:58.1]} 2. Nf3 {[%clk 0:02:58.6]}
2... Nc6 {[%clk 0:02:58.3]} 3. Bc4 {[%clk 0:02:57.1]} 3... Bc5 {[%clk
0:02:57.8]} 4. O-O {[%clk 0:02:54.8]} 4... Nf6 {[%clk 0:02:56.5]} 5. d3 {[%clk
0:02:53.7]} 5... O-O {[%clk 0:02:55]} 6. h3 {[%clk 0:02:49.7]} 6... a6 {[%clk
0:02:54.5]} 7. a4 {[%clk 0:02:48.3]} 7... Ba7 {[%clk 0:02:52.2]} 8. Re1 {[%clk
0:02:40.8]} 8... h6 {[%clk 0:02:51.5]} 9. Nbd2 {[%clk 0:02:39.4]} 9... d6 {[%clk
0:02:51]} 10. c3 {[%clk 0:02:39]} 10... Ne7 {[%clk 0:02:40.3]} 11. Nf1 {[%clk
0:02:36.7]} 11... Ng6 {[%clk 0:02:39.3]} 12. d4 {[%clk 0:02:29.1]} 12... exd4
{[%clk 0:02:26.9]} 13. cxd4 {[%clk 0:02:23.1]} 13... d5 {[%clk 0:02:26.6]} 14.
exd5 {[%clk 0:02:12.3]} 14... Nxd5 {[%clk 0:02:27.5]} 15. Ne3 {[%clk 0:01:46]}
15... Ndf4 {[%clk 0:02:16.5]} 16. Ng4 {[%clk 0:01:20.1]} 16... Bxg4 {[%clk
0:02:05.7]} 17. hxg4 {[%clk 0:01:18.5]} 17... Qd7 {[%clk 0:01:49.4]} 18. Bxf4
{[%clk 0:00:34]} 18... Nxf4 {[%clk 0:01:47.6]} 19. Ne5 {[%clk 0:00:34.3]} 19...
Qxd4 {[%clk 0:01:37.9]} 20. Qf3 {[%clk 0:00:32.7]} 20... c6 {[%clk 0:01:06]} 21.
Rad1 {[%clk 0:00:20.5]} 21... Qxb2 {[%clk 0:00:42.9]} 22. Qxf4 {[%clk
0:00:20.3]} 22... b5 {[%clk 0:00:32.3]} 23. axb5 {[%clk 0:00:17.9]} 23... axb5
{[%clk 0:00:25.2]} 24. Bxf7+ {[%clk 0:00:17.5]} 24... Kh7 {[%clk 0:00:22.4]} 25.
Qf5+ {[%clk 0:00:16.3]} 25... Kh8 {[%clk 0:00:21.4]} 26. Ng6+ {[%clk 0:00:16.5]}
26... Kh7 {[%clk 0:00:20.7]} 27. Nxf8+ {[%clk 0:00:16.8]} 27... Kh8 {[%clk
0:00:21.3]} 28. Qh7# {[%clk 0:00:16.9]} 1-0

[Event "Late-Titled-Tuesday-Blitz-March-12-2024"]
[Site "Chess.com"]
[Date "2024.03.12"]
[Round "3"]
[White "WindWhistler11"]
[Black "GMKrikor"]
[Result "0-1"]
[WhiteElo "2536"]
[BlackElo "2878"]
[TimeControl "180+1"]
[EndTime "14:26:32 PDT"]
[Termination "GMKrikor won by resignation"]

1. Nf3 {[%clk 0:02:58.8]} 1... d5 {[%clk 0:02:59.6]} 2. g3 {[%clk 0:02:55.4]}
2... Nc6 {[%clk 0:02:59.4]} 3. c4 {[%clk 0:02:55.6]} 3... d4 {[%clk 0:02:57.3]}
4. e3 {[%clk 0:02:51.9]} 4... e5 {[%clk 0:02:52.5]} 5. d3 {[%clk 0:02:44.9]}
5... Nf6 {[%clk 0:02:36.4]} 6. exd4 {[%clk 0:02:40.7]} 6... Nxd4 {[%clk
0:02:35.9]} 7. Nxd4 {[%clk 0:02:35.3]} 7... Qxd4 {[%clk 0:02:35.2]} 8. Nc3
{[%clk 0:02:28.8]} 8... c6 {[%clk 0:02:32.3]} 9. Be3 {[%clk 0:02:25.1]} 9... Qg4
{[%clk 0:02:30.5]} 10. Be2 {[%clk 0:02:23.3]} 10... Qh3 {[%clk 0:02:30.6]} 11.
Qb3 {[%clk 0:01:35]} 11... Be7 {[%clk 0:02:24.4]} 12. O-O-O {[%clk 0:01:35.1]}
12... O-O {[%clk 0:02:24.6]} 13. d4 {[%clk 0:01:34.4]} 13... exd4 {[%clk
0:02:20.1]} 14. Rxd4 {[%clk 0:01:32.9]} 14... Bc5 {[%clk 0:02:17.7]} 15. Rd3
{[%clk 0:01:20.7]} 15... Bxe3+ {[%clk 0:02:07.6]} 16. Rxe3 {[%clk 0:01:21.6]}
16... Qg2 {[%clk 0:02:05]} 17. Rf1 {[%clk 0:01:15.4]} 17... Bg4 {[%clk
0:01:59.4]} 18. Qd1 {[%clk 0:01:10.2]} 18... Rad8 {[%clk 0:01:54.9]} 19. Rd3
{[%clk 0:00:57.9]} 19... Rxd3 {[%clk 0:01:48.4]} 20. Qxd3 {[%clk 0:00:57.6]}
20... Bxe2 {[%clk 0:01:40.8]} 21. Qxe2 {[%clk 0:00:52.5]} 21... Re8 {[%clk
0:01:37.3]} 22. Qd3 {[%clk 0:00:49.4]} 22... Qxh2 {[%clk 0:01:37.3]} 23. Kb1
{[%clk 0:00:40.6]} 23... h5 {[%clk 0:01:37.2]} 24. Ne2 {[%clk 0:00:38.3]} 24...
Qh3 {[%clk 0:01:30.7]} 25. Nf4 {[%clk 0:00:36.7]} 25... Qg4 {[%clk 0:01:30.7]}
26. Rh1 {[%clk 0:00:33.8]} 26... g6 {[%clk 0:01:26.6]} 27. a3 {[%clk 0:00:29.2]}
27... Qd7 {[%clk 0:01:23.1]} 28. Qc3 {[%clk 0:00:27.5]} 28... Ne4 {[%clk
0:01:21.8]} 29. Qc2 {[%clk 0:00:25.8]} 29... Qd4 {[%clk 0:01:11.2]} 30. Nd3
{[%clk 0:00:17.5]} 30... Qxc4 {[%clk 0:01:03.8]} 31. Re1 {[%clk 0:00:16.7]}
31... Qxc2+ {[%clk 0:00:59.8]} 32. Kxc2 {[%clk 0:00:17.6]} 32... Nd6 {[%clk
0:00:58.7]} 33. Rxe8+ {[%clk 0:00:17.7]} 33... Nxe8 {[%clk 0:00:59.6]} 34. Nc5
{[%clk 0:00:18.6]} 34... Nd6 {[%clk 0:00:59.9]} 35. Kc3 {[%clk 0:00:17.6]} 35...
Kf8 {[%clk 0:00:59.7]} 36. Kd4 {[%clk 0:00:18.1]} 36... Ke7 {[%clk 0:01:00.1]}
37. Ke5 {[%clk 0:00:18.8]} 37... f6+ {[%clk 0:01:00.5]} 38. Kf4 {[%clk
0:00:19.2]} 38... g5+ {[%clk 0:01:00.5]} 39. Ke3 {[%clk 0:00:19.2]} 39... b6
{[%clk 0:01:01.1]} 40. Nd3 {[%clk 0:00:18.6]} 40... Ke6 {[%clk 0:01:00.7]} 41.
Kd4 {[%clk 0:00:19.5]} 41... c5+ {[%clk 0:01:00.4]} 42. Kc3 {[%clk 0:00:18.6]}
42... Kd5 {[%clk 0:00:59.6]} 0-1

[Event "Late-Titled-Tuesday-Blitz-March-12-2024"]
[Site "Chess.com"]
[Date "2024.03.12"]
[Round "3"]
[White "N4700000"]
[Black "GoltsevDmitry2000"]
[Result "0-1"]
[WhiteElo "2494"]
[BlackElo "2691"]
[TimeControl "180+1"]
[EndTime "14:26:36 PDT"]
[Termination "GoltsevDmitry2000 won by resignation"]

1. e4 {[%clk 0:03:00.9]} 1... e6 {[%clk 0:02:55.5]} 2. d4 {[%clk 0:02:59.4]}
2... d5 {[%clk 0:02:55.9]} 3. Nc3 {[%clk 0:02:58.8]} 3... c5 {[%clk 0:02:56.5]}
4. exd5 {[%clk 0:02:53]} 4... exd5 {[%clk 0:02:56.1]} 5. Nf3 {[%clk 0:02:51.5]}
5... Nf6 {[%clk 0:02:55.7]} 6. Bb5+ {[%clk 0:02:50.3]} 6... Nc6 {[%clk
0:02:56.2]} 7. O-O {[%clk 0:02:49.1]} 7... Be7 {[%clk 0:02:56.7]} 8. dxc5 {[%clk
0:02:48.3]} 8... Bxc5 {[%clk 0:02:57.6]} 9. Re1+ {[%clk 0:02:45.9]} 9... Be6
{[%clk 0:02:57.8]} 10. Be3 {[%clk 0:02:42.3]} 10... Bxe3 {[%clk 0:02:54.7]} 11.
Rxe3 {[%clk 0:02:41.7]} 11... O-O {[%clk 0:02:55]} 12. Nd4 {[%clk 0:02:33.5]}
12... Bd7 {[%clk 0:02:52.4]} 13. Bxc6 {[%clk 0:02:22.1]} 13... bxc6 {[%clk
0:02:51.6]} 14. Nb3 {[%clk 0:01:51.7]} 14... Qc7 {[%clk 0:02:41.5]} 15. h3
{[%clk 0:01:44.4]} 15... Rfe8 {[%clk 0:02:36.8]} 16. Rxe8+ {[%clk 0:01:39.5]}
16... Rxe8 {[%clk 0:02:37.7]} 17. Qd4 {[%clk 0:01:31.5]} 17... Bf5 {[%clk
0:02:31.6]} 18. Qd2 {[%clk 0:01:25.7]} 18... Qd6 {[%clk 0:02:22.8]} 19. Nd4
{[%clk 0:01:05.1]} 19... Bg6 {[%clk 0:02:20.3]} 20. Rd1 {[%clk 0:01:00.9]} 20...
a6 {[%clk 0:02:15.9]} 21. Nde2 {[%clk 0:00:55.2]} 21... c5 {[%clk 0:02:12.4]}
22. Nf4 {[%clk 0:00:50.5]} 22... d4 {[%clk 0:02:10.1]} 23. Nxg6 {[%clk
0:00:49.4]} 23... hxg6 {[%clk 0:02:09.7]} 24. Qd3 {[%clk 0:00:43.2]} 24... Qe6
{[%clk 0:02:01.6]} 25. Na4 {[%clk 0:00:36]} 25... Qc6 {[%clk 0:01:36.5]} 26. b3
{[%clk 0:00:33.2]} 26... Nd5 {[%clk 0:01:36.6]} 27. Qf3 {[%clk 0:00:23]} 27...
Qd6 {[%clk 0:01:32.8]} 28. c3 {[%clk 0:00:17.8]} 28... Nf4 {[%clk 0:01:30.2]}
29. cxd4 {[%clk 0:00:15.5]} 29... cxd4 {[%clk 0:01:28]} 30. Nb2 {[%clk
0:00:13.9]} 30... Ne2+ {[%clk 0:01:18.2]} 31. Kh1 {[%clk 0:00:13.1]} 31... Nc3
{[%clk 0:01:19.1]} 32. Rf1 {[%clk 0:00:08.4]} 32... Qa3 {[%clk 0:01:13.3]} 33.
Nc4 {[%clk 0:00:08.1]} 33... Qxa2 {[%clk 0:01:13.8]} 34. Qd3 {[%clk 0:00:08.2]}
34... Nb5 {[%clk 0:01:05.9]} 35. Nb6 {[%clk 0:00:06.1]} 35... Qe2 {[%clk
0:01:03.1]} 36. Qxe2 {[%clk 0:00:05.6]} 36... Rxe2 {[%clk 0:01:04]} 37. Kg1
{[%clk 0:00:05.7]} 37... d3 {[%clk 0:01:04.1]} 38. Nc4 {[%clk 0:00:05.2]} 38...
d2 {[%clk 0:01:03.7]} 39. Ne3 {[%clk 0:00:03.4]} 39... Nc3 {[%clk 0:01:00.2]}
0-1

[Event "Late-Titled-Tuesday-Blitz-March-12-2024"]
[Site "Chess.com"]
[Date "2024.03.12"]
[Round "3"]
[White "Willhaven3"]
[Black "prochn"]
[Result "0-1"]
[WhiteElo "2638"]
[BlackElo "2491"]
[TimeControl "180+1"]
[EndTime "14:26:37 PDT"]
[Termination "prochn won by resignation"]

1. e4 {[%clk 0:03:00.9]} 1... c6 {[%clk 0:02:59.4]} 2. d4 {[%clk 0:02:59.5]}
2... d5 {[%clk 0:02:59.6]} 3. exd5 {[%clk 0:03:00]} 3... cxd5 {[%clk 0:02:59.6]}
4. Bd3 {[%clk 0:03:00.6]} 4... Nc6 {[%clk 0:02:59.5]} 5. c3 {[%clk 0:03:01.1]}
5... g6 {[%clk 0:02:58.5]} 6. Bf4 {[%clk 0:03:01.2]} 6... Bg7 {[%clk 0:02:58.4]}
7. Nd2 {[%clk 0:03:01.3]} 7... Nh6 {[%clk 0:02:57]} 8. Ngf3 {[%clk 0:03:00.1]}
8... O-O {[%clk 0:02:56.8]} 9. O-O {[%clk 0:03:00.2]} 9... f6 {[%clk 0:02:56.9]}
10. Re1 {[%clk 0:02:54.9]} 10... Nf7 {[%clk 0:02:56.1]} 11. Bg3 {[%clk
0:02:55.1]} 11... e5 {[%clk 0:02:53.5]} 12. dxe5 {[%clk 0:02:47.4]} 12... fxe5
{[%clk 0:02:53.3]} 13. Bb5 {[%clk 0:02:32.4]} 13... e4 {[%clk 0:02:43.9]} 14.
Bxc6 {[%clk 0:02:23]} 14... bxc6 {[%clk 0:02:42.8]} 15. Nd4 {[%clk 0:02:23.3]}
15... Ne5 {[%clk 0:02:26.6]} 16. Bxe5 {[%clk 0:01:52.6]} 16... Bxe5 {[%clk
0:02:25.2]} 17. Nxc6 {[%clk 0:01:52.9]} 17... Bxh2+ {[%clk 0:02:22.9]} 18. Kxh2
{[%clk 0:01:53.8]} 18... Qh4+ {[%clk 0:02:13.4]} 19. Kg1 {[%clk 0:01:53.8]}
19... Qxf2+ {[%clk 0:02:13.2]} 20. Kh2 {[%clk 0:01:54.2]} 20... Rf4 {[%clk
0:02:05.4]} 21. Nf3 {[%clk 0:01:20]} 21... exf3 {[%clk 0:01:19]} 22. Qxd5+
{[%clk 0:01:19.7]} 22... Rf7 {[%clk 0:00:48.9]} 23. Ne7+ {[%clk 0:00:25.7]}
23... Kf8 {[%clk 0:00:48.1]} 24. Qd8+ {[%clk 0:00:19]} 24... Kg7 {[%clk
0:00:48.4]} 25. Qd4+ {[%clk 0:00:16.3]} 25... Qxd4 {[%clk 0:00:47.8]} 26. cxd4
{[%clk 0:00:17.2]} 26... f2 {[%clk 0:00:44.2]} 27. Rf1 {[%clk 0:00:08.8]} 27...
Ba6 {[%clk 0:00:38.2]} 28. Rxf2 {[%clk 0:00:09.7]} 28... Rxf2 {[%clk 0:00:37.3]}
29. Nd5 {[%clk 0:00:07.1]} 0-1